[Event "Late-Titled-Tuesday-Blitz-February-20-2024"]
[Site "Chess.com"]
[Date "2024.02.20"]
[Round "11"]
[White "Happy1712Drummer"]
[Black "otrov-11"]
[Result "0-1"]
[WhiteElo "2384"]
[BlackElo "2613"]
[TimeControl "180+1"]
[EndTime "16:05:18 PST"]
[Termination "otrov-11 won on time"]

1. e4 {[%clk 0:02:58.2]} 1... e6 {[%clk 0:03:00.2]} 2. d4 {[%clk 0:02:56.7]}
2... d5 {[%clk 0:03:00.5]} 3. e5 {[%clk 0:02:56.9]} 3... c5 {[%clk 0:03:00.6]}
4. c3 {[%clk 0:02:56.6]} 4... Qb6 {[%clk 0:03:01.2]} 5. Nf3 {[%clk 0:02:56]}
5... Nc6 {[%clk 0:03:01.9]} 6. a3 {[%clk 0:02:54.9]} 6... c4 {[%clk 0:03:01.7]}
7. Nbd2 {[%clk 0:02:52.7]} 7... Na5 {[%clk 0:03:02.3]} 8. Be2 {[%clk 0:02:51.8]}
8... Bd7 {[%clk 0:03:02.6]} 9. Rb1 {[%clk 0:02:50.1]} 9... Ne7 {[%clk
0:03:03.3]} 10. h4 {[%clk 0:02:48.7]} 10... h6 {[%clk 0:03:03.7]} 11. h5 {[%clk
0:02:48.2]} 11... Nc8 {[%clk 0:03:04.1]} 12. g4 {[%clk 0:02:42.3]} 12... Be7
{[%clk 0:03:03.7]} 13. Nf1 {[%clk 0:02:31.7]} 13... Qc7 {[%clk 0:03:04.1]} 14.
Be3 {[%clk 0:02:23.7]} 14... Nb6 {[%clk 0:03:04]} 15. Ng3 {[%clk 0:01:51.9]}
15... O-O-O {[%clk 0:02:34.8]} 16. O-O {[%clk 0:01:48.5]} 16... f6 {[%clk
0:02:34.5]} 17. Bf4 {[%clk 0:01:39.8]} 17... Nc6 {[%clk 0:02:04.1]} 18. Re1
{[%clk 0:01:19.9]} 18... fxe5 {[%clk 0:01:53.6]} 19. Nxe5 {[%clk 0:01:17.2]}
19... Bd6 {[%clk 0:01:54.1]} 20. Bf1 {[%clk 0:01:15.1]} 20... Rhf8 {[%clk
0:01:47.8]} 21. Nxd7 {[%clk 0:01:12.9]} 21... Rxf4 {[%clk 0:01:45.2]} 22. Nxb6+
{[%clk 0:01:11.5]} 22... axb6 {[%clk 0:01:43.4]} 23. Rxe6 {[%clk 0:01:10.6]}
23... Rdf8 {[%clk 0:01:44.1]} 24. Nf5 {[%clk 0:01:06.6]} 24... R4xf5 {[%clk
0:01:15]} 25. gxf5 {[%clk 0:01:05.1]} 25... Rxf5 {[%clk 0:01:11.7]} 26. Rg6
{[%clk 0:00:43.6]} 26... Kb8 {[%clk 0:01:10]} 27. Qg4 {[%clk 0:00:39.7]} 27...
Rf4 {[%clk 0:01:07.8]} 28. Qg2 {[%clk 0:00:39.4]} 28... Qe7 {[%clk 0:01:01.3]}
29. Rxg7 {[%clk 0:00:31.9]} 29... Qh4 {[%clk 0:01:01.4]} 30. Be2 {[%clk
0:00:26.6]} 30... Ne7 {[%clk 0:00:55.8]} 31. Rf1 {[%clk 0:00:23.1]} 31... Qf6
{[%clk 0:00:38.5]} 32. Rg4 {[%clk 0:00:16.9]} 32... Rf5 {[%clk 0:00:38.1]} 33.
Rg7 {[%clk 0:00:13.2]} 33... Ka7 {[%clk 0:00:35.1]} 34. Bd1 {[%clk 0:00:12.9]}
34... Rf4 {[%clk 0:00:34.6]} 35. Re1 {[%clk 0:00:12.4]} 35... Nf5 {[%clk
0:00:34.4]} 36. Rg6 {[%clk 0:00:12.2]} 36... Qf8 {[%clk 0:00:32.8]} 37. Qxd5
{[%clk 0:00:11.9]} 37... Nh4 {[%clk 0:00:32]} 38. Qg8 {[%clk 0:00:11.5]} 38...
Nxg6 {[%clk 0:00:30]} 39. Qxg6 {[%clk 0:00:11.3]} 39... Rxf2 {[%clk 0:00:29.4]}
40. Be2 {[%clk 0:00:09.9]} 40... Qf4 {[%clk 0:00:28.5]} 41. Qxd6 {[%clk
0:00:01.6]} 41... Qxd6 {[%clk 0:00:22.5]} 42. Kxf2 {[%clk 0:00:02.5]} 42... Qh2+
{[%clk 0:00:21.7]} 43. Ke3 {[%clk 0:00:02]} 43... Qg3+ {[%clk 0:00:20.7]} 44.
Kd2 {[%clk 0:00:02.2]} 44... b5 {[%clk 0:00:21.4]} 45. Kd1 {[%clk 0:00:01.9]}
45... Qe3 {[%clk 0:00:20.9]} 0-1

[Event "Late-Titled-Tuesday-Blitz-February-20-2024"]
[Site "Chess.com"]
[Date "2024.02.20"]
[Round "11"]
[White "GnowReopard"]
[Black "jcibarra"]
[Result "0-1"]
[WhiteElo "2822"]
[BlackElo "2938"]
[TimeControl "180+1"]
[EndTime "16:05:26 PST"]
[Termination "jcibarra won on time"]

1. e4 {[%clk 0:03:00.9]} 1... c5 {[%clk 0:02:54.5]} 2. Ne2 {[%clk 0:03:00.5]}
2... Nf6 {[%clk 0:02:53.1]} 3. Nbc3 {[%clk 0:02:59.8]} 3... d6 {[%clk
0:02:41.6]} 4. d4 {[%clk 0:02:59.2]} 4... cxd4 {[%clk 0:02:41.7]} 5. Nxd4 {[%clk
0:03:00.1]} 5... a6 {[%clk 0:02:42.3]} 6. Nb3 {[%clk 0:02:59.7]} 6... Nc6 {[%clk
0:02:40.8]} 7. Be3 {[%clk 0:02:58.6]} 7... Ng4 {[%clk 0:02:36.5]} 8. Bd2 {[%clk
0:02:49.9]} 8... g6 {[%clk 0:02:32.9]} 9. Be2 {[%clk 0:02:28.3]} 9... Nf6 {[%clk
0:02:29.9]} 10. Be3 {[%clk 0:02:28.2]} 10... Bg7 {[%clk 0:02:29.7]} 11. g4
{[%clk 0:02:24.9]} 11... Be6 {[%clk 0:02:27]} 12. h4 {[%clk 0:02:18.3]} 12... d5
{[%clk 0:02:20.1]} 13. h5 {[%clk 0:01:48.7]} 13... Nxe4 {[%clk 0:02:16.6]} 14.
Nxe4 {[%clk 0:01:45.3]} 14... dxe4 {[%clk 0:02:17.5]} 15. c3 {[%clk 0:01:45.2]}
15... O-O {[%clk 0:01:14.7]} 16. Nc5 {[%clk 0:01:41.8]} 16... Qxd1+ {[%clk
0:01:04]} 17. Rxd1 {[%clk 0:01:40.2]} 17... Bxa2 {[%clk 0:00:56.9]} 18. Nxe4
{[%clk 0:01:36.4]} 18... Rfd8 {[%clk 0:00:54.9]} 19. Bb6 {[%clk 0:01:19.3]}
19... Rxd1+ {[%clk 0:00:54.3]} 20. Bxd1 {[%clk 0:01:19.5]} 20... Bd5 {[%clk
0:00:48.8]} 21. Bf3 {[%clk 0:01:17.7]} 21... e6 {[%clk 0:00:45.8]} 22. Nd2
{[%clk 0:00:51.6]} 22... Ne5 {[%clk 0:00:42.5]} 23. Bxd5 {[%clk 0:00:48.3]}
23... exd5 {[%clk 0:00:43.4]} 24. hxg6 {[%clk 0:00:32.8]} 24... hxg6 {[%clk
0:00:43.4]} 25. O-O {[%clk 0:00:25.7]} 25... Nxg4 {[%clk 0:00:38.2]} 26. Re1
{[%clk 0:00:26.1]} 26... Ne5 {[%clk 0:00:38.1]} 27. Re2 {[%clk 0:00:17.6]} 27...
Rc8 {[%clk 0:00:31.8]} 28. Nb3 {[%clk 0:00:06.9]} 28... Nc4 {[%clk 0:00:26]} 29.
Bd4 {[%clk 0:00:07.1]} 29... a5 {[%clk 0:00:20.4]} 30. Bxg7 {[%clk 0:00:06.4]}
30... Kxg7 {[%clk 0:00:21.3]} 31. Nd4 {[%clk 0:00:06.7]} 31... a4 {[%clk
0:00:20.5]} 32. Kg2 {[%clk 0:00:07]} 32... Nd6 {[%clk 0:00:19.3]} 33. Re5 {[%clk
0:00:05]} 33... Nc4 {[%clk 0:00:17.8]} 34. Rxd5 {[%clk 0:00:03.1]} 34... Nxb2
{[%clk 0:00:18.1]} 35. Rb5 {[%clk 0:00:03.5]} 35... a3 {[%clk 0:00:18.2]} 36.
Rxb7 {[%clk 0:00:04]} 36... Rxc3 {[%clk 0:00:18.3]} 37. Ne6+ {[%clk 0:00:03.1]}
37... Kf6 {[%clk 0:00:18.3]} 38. Nd8 {[%clk 0:00:03]} 38... Rc4 {[%clk
0:00:13.7]} 39. Rxf7+ {[%clk 0:00:03]} 39... Ke5 {[%clk 0:00:12]} 40. Re7+
{[%clk 0:00:03.2]} 40... Kd6 {[%clk 0:00:11.6]} 0-1

[Event "Late-Titled-Tuesday-Blitz-February-20-2024"]
[Site "Chess.com"]
[Date "2024.02.20"]
[Round "11"]
[White "SocoLoco"]
[Black "Bkmzzzzz"]
[Result "1-0"]
[WhiteElo "2218"]
[BlackElo "2356"]
[TimeControl "180+1"]
[EndTime "16:05:27 PST"]
[Termination "SocoLoco won by resignation"]

1. e4 {[%clk 0:03:00.9]} 1... d6 {[%clk 0:02:59.5]} 2. d4 {[%clk 0:03:00]} 2...
Nf6 {[%clk 0:02:58.8]} 3. Nc3 {[%clk 0:03:00]} 3... e5 {[%clk 0:02:59.2]} 4.
dxe5 {[%clk 0:02:58.6]} 4... dxe5 {[%clk 0:03:00.1]} 5. Qxd8+ {[%clk 0:02:57.4]}
5... Kxd8 {[%clk 0:03:01]} 6. f4 {[%clk 0:02:56.8]} 6... exf4 {[%clk 0:02:47.4]}
7. Bxf4 {[%clk 0:02:57.7]} 7... Bb4 {[%clk 0:02:44.7]} 8. O-O-O+ {[%clk
0:02:39.2]} 8... Bd7 {[%clk 0:02:21]} 9. Bg5 {[%clk 0:02:26.3]} 9... Bxc3 {[%clk
0:02:15.2]} 10. bxc3 {[%clk 0:02:27.2]} 10... h6 {[%clk 0:02:13.3]} 11. Bxf6+
{[%clk 0:02:25.8]} 11... gxf6 {[%clk 0:02:14.2]} 12. Nf3 {[%clk 0:02:25.4]}
12... Ke7 {[%clk 0:02:13.9]} 13. Bc4 {[%clk 0:02:23.1]} 13... Be6 {[%clk
0:02:13.4]} 14. Bb3 {[%clk 0:02:20.3]} 14... a5 {[%clk 0:02:12.8]} 15. a4 {[%clk
0:02:15]} 15... Nd7 {[%clk 0:02:10.3]} 16. Nd4 {[%clk 0:02:14.8]} 16... Nc5
{[%clk 0:02:07]} 17. Rhe1 {[%clk 0:02:07.6]} 17... Nxb3+ {[%clk 0:01:46.2]} 18.
cxb3 {[%clk 0:02:06]} 18... c6 {[%clk 0:01:45.9]} 19. Kc2 {[%clk 0:01:55.6]}
19... Kd7 {[%clk 0:01:28.8]} 20. Nf5+ {[%clk 0:01:39.1]} 20... Kc7 {[%clk
0:01:28.3]} 21. Rf1 {[%clk 0:01:31.8]} 21... Rag8 {[%clk 0:01:22.5]} 22. g3
{[%clk 0:01:30.8]} 22... h5 {[%clk 0:01:21.4]} 23. Nh4 {[%clk 0:01:29.2]} 23...
Rh6 {[%clk 0:01:05.6]} 24. Rd2 {[%clk 0:01:28.1]} 24... Bh3 {[%clk 0:00:59.1]}
25. Rf4 {[%clk 0:01:21.7]} 25... Re8 {[%clk 0:00:59.3]} 26. Rdf2 {[%clk
0:01:18.8]} 26... Re6 {[%clk 0:00:58.1]} 27. Kd3 {[%clk 0:01:14.8]} 27... Kd7
{[%clk 0:00:55.7]} 28. Nf5 {[%clk 0:00:51.7]} 28... Bxf5 {[%clk 0:00:43.9]} 29.
exf5 {[%clk 0:00:51.5]} 29... Re5 {[%clk 0:00:39.8]} 30. Rh4 {[%clk 0:00:42.4]}
30... Kd6 {[%clk 0:00:35.5]} 31. g4 {[%clk 0:00:35.1]} 31... Re8 {[%clk
0:00:27.9]} 32. Rxh5 {[%clk 0:00:34.9]} 32... Rxh5 {[%clk 0:00:27.7]} 33. gxh5
{[%clk 0:00:35.5]} 33... Rh8 {[%clk 0:00:28.3]} 34. Rf3 {[%clk 0:00:23.3]} 34...
Rxh5 {[%clk 0:00:28.5]} 35. h3 {[%clk 0:00:24]} 35... Ke5 {[%clk 0:00:28.2]} 36.
Kc4 {[%clk 0:00:18.8]} 36... b6 {[%clk 0:00:22.8]} 37. b4 {[%clk 0:00:18.1]}
37... Rxf5 {[%clk 0:00:22.1]} 38. Rxf5+ {[%clk 0:00:15.1]} 38... Kxf5 {[%clk
0:00:23]} 39. bxa5 {[%clk 0:00:15]} 39... bxa5 {[%clk 0:00:23.3]} 40. Kc5 {[%clk
0:00:15.9]} 40... Kg5 {[%clk 0:00:23.1]} 41. Kxc6 {[%clk 0:00:16.5]} 41... f5
{[%clk 0:00:23.6]} 42. Kd5 {[%clk 0:00:14.8]} 42... f6 {[%clk 0:00:14.1]} 43. c4
{[%clk 0:00:14.8]} 43... Kh4 {[%clk 0:00:13.7]} 44. c5 {[%clk 0:00:12.6]} 44...
f4 {[%clk 0:00:13.8]} 45. c6 {[%clk 0:00:13.5]} 45... Kg3 {[%clk 0:00:14.3]} 46.
c7 {[%clk 0:00:13.5]} 46... f3 {[%clk 0:00:14.9]} 47. c8=Q {[%clk 0:00:14.1]}
47... f2 {[%clk 0:00:15.4]} 48. Qg4+ {[%clk 0:00:14.2]} 48... Kh2 {[%clk
0:00:15]} 49. Qf4+ {[%clk 0:00:14]} 49... Kg1 {[%clk 0:00:13.9]} 50. Qxf6 {[%clk
0:00:13.5]} 50... f1=Q {[%clk 0:00:13.9]} 51. Qxf1+ {[%clk 0:00:14.1]} 51...
Kxf1 {[%clk 0:00:14.8]} 52. h4 {[%clk 0:00:14.1]} 1-0

[Event "Late-Titled-Tuesday-Blitz-February-20-2024"]
[Site "Chess.com"]
[Date "2024.02.20"]
[Round "11"]
[White "Tunahan_Makaraci"]
[Black "manitodeplomo"]
[Result "1-0"]
[WhiteElo "2549"]
[BlackElo "2650"]
[TimeControl "180+1"]
[EndTime "16:05:35 PST"]
[Termination "Tunahan_Makaraci won by checkmate"]

1. e4 {[%clk 0:03:00.9]} 1... c5 {[%clk 0:02:57.4]} 2. Nf3 {[%clk 0:03:00.7]}
2... e6 {[%clk 0:02:56.2]} 3. c3 {[%clk 0:03:01]} 3... d5 {[%clk 0:02:55.8]} 4.
exd5 {[%clk 0:03:01.9]} 4... Qxd5 {[%clk 0:02:56.3]} 5. d4 {[%clk 0:03:02.1]}
5... Nf6 {[%clk 0:02:56.9]} 6. a3 {[%clk 0:03:02.3]} 6... Be7 {[%clk 0:02:56]}
7. Be3 {[%clk 0:03:02.8]} 7... cxd4 {[%clk 0:02:54.5]} 8. cxd4 {[%clk
0:03:03.7]} 8... O-O {[%clk 0:02:54.6]} 9. Nc3 {[%clk 0:03:04.4]} 9... Qd6
{[%clk 0:02:54.2]} 10. Bd3 {[%clk 0:03:05]} 10... a6 {[%clk 0:02:53.7]} 11. O-O
{[%clk 0:03:05.6]} 11... Rd8 {[%clk 0:02:50.7]} 12. Qe2 {[%clk 0:03:05.8]} 12...
b5 {[%clk 0:02:47.1]} 13. Rad1 {[%clk 0:03:05.8]} 13... Bb7 {[%clk 0:02:46.7]}
14. Rfe1 {[%clk 0:03:05.8]} 14... Nbd7 {[%clk 0:02:45.8]} 15. Bb1 {[%clk
0:03:04.5]} 15... Rac8 {[%clk 0:02:45.4]} 16. Bg5 {[%clk 0:02:53]} 16... Nb6
{[%clk 0:02:27.4]} 17. Ne5 {[%clk 0:02:36.9]} 17... Nc4 {[%clk 0:02:24.1]} 18.
Bxf6 {[%clk 0:02:33.4]} 18... Bxf6 {[%clk 0:02:23.2]} 19. Bxh7+ {[%clk 0:02:34]}
19... Kf8 {[%clk 0:02:01.4]} 20. Qh5 {[%clk 0:02:21.8]} 20... Bxe5 {[%clk
0:01:54.6]} 21. dxe5 {[%clk 0:02:20.3]} 21... Qc7 {[%clk 0:01:54.5]} 22. Bb1
{[%clk 0:01:31.8]} 22... Nxb2 {[%clk 0:01:47.1]} 23. Rxd8+ {[%clk 0:01:27.8]}
23... Rxd8 {[%clk 0:01:44.7]} 24. Ne4 {[%clk 0:01:08.7]} 24... Bxe4 {[%clk
0:01:24.3]} 25. Bxe4 {[%clk 0:01:06.6]} 25... Qc3 {[%clk 0:01:18]} 26. Rb1
{[%clk 0:00:47.5]} 26... Rd4 {[%clk 0:00:57.8]} 27. Bf3 {[%clk 0:00:33]} 27...
Nc4 {[%clk 0:00:47.4]} 28. Qh8+ {[%clk 0:00:30.4]} 28... Ke7 {[%clk 0:00:46.6]}
29. Qxg7 {[%clk 0:00:30.6]} 29... Nxe5 {[%clk 0:00:45.4]} 30. Qg5+ {[%clk
0:00:23.4]} 30... Kd7 {[%clk 0:00:35.3]} 31. Qxe5 {[%clk 0:00:19.9]} 31... Rd3
{[%clk 0:00:34.4]} 32. Qxc3 {[%clk 0:00:14.5]} 32... Rxc3 {[%clk 0:00:35.3]} 33.
h4 {[%clk 0:00:14.3]} 33... Rxa3 {[%clk 0:00:34.6]} 34. h5 {[%clk 0:00:14.2]}
34... Ke7 {[%clk 0:00:35.3]} 35. Rc1 {[%clk 0:00:13]} 35... b4 {[%clk
0:00:32.7]} 36. Rc7+ {[%clk 0:00:10.3]} 36... Kf6 {[%clk 0:00:32.7]} 37. g4
{[%clk 0:00:04.6]} 37... a5 {[%clk 0:00:27.8]} 38. Kg2 {[%clk 0:00:04.8]} 38...
b3 {[%clk 0:00:24.6]} 39. Be4 {[%clk 0:00:04.6]} 39... Ra4 {[%clk 0:00:23.9]}
40. h6 {[%clk 0:00:03.8]} 40... Rxe4 {[%clk 0:00:21.1]} 41. h7 {[%clk
0:00:04.1]} 41... Kg7 {[%clk 0:00:21.3]} 42. Rxf7+ {[%clk 0:00:02.9]} 42... Kh8
{[%clk 0:00:21.4]} 43. f3 {[%clk 0:00:02.2]} 43... Rb4 {[%clk 0:00:19.1]} 44. g5
{[%clk 0:00:02.6]} 44... b2 {[%clk 0:00:16.6]} 45. g6 {[%clk 0:00:03.1]} 45...
Rb8 {[%clk 0:00:10.8]} 46. g7+ {[%clk 0:00:02.1]} 46... Kxh7 {[%clk 0:00:10.9]}
47. Rf8 {[%clk 0:00:02.6]} 47... b1=Q {[%clk 0:00:10.5]} 48. g8=Q+ {[%clk
0:00:01.9]} 48... Kh6 {[%clk 0:00:11.4]} 49. Rf6+ {[%clk 0:00:02.3]} 49... Kh5
{[%clk 0:00:11.8]} 50. Qg4# {[%clk 0:00:02.8]} 1-0

[Event "Late-Titled-Tuesday-Blitz-February-20-2024"]
[Site "Chess.com"]
[Date "2024.02.20"]
[Round "11"]
[White "dolynachess"]
[Black "kleopl"]
[Result "1-0"]
[WhiteElo "2459"]
[BlackElo "2504"]
[TimeControl "180+1"]
[EndTime "16:05:35 PST"]
[Termination "dolynachess won on time"]

1. d4 {[%clk 0:02:53.7]} 1... Nf6 {[%clk 0:02:58.9]} 2. c4 {[%clk 0:02:42.8]}
2... e6 {[%clk 0:02:58.8]} 3. Nf3 {[%clk 0:02:39.2]} 3... c5 {[%clk 0:02:58.3]}
4. g3 {[%clk 0:02:38.7]} 4... cxd4 {[%clk 0:02:57]} 5. Nxd4 {[%clk 0:02:39.6]}
5... Nc6 {[%clk 0:02:56.2]} 6. Bg2 {[%clk 0:02:33.1]} 6... Qb6 {[%clk
0:02:52.5]} 7. Nc2 {[%clk 0:02:22.2]} 7... Bc5 {[%clk 0:02:45.1]} 8. O-O {[%clk
0:02:20.7]} 8... O-O {[%clk 0:02:40.5]} 9. Nc3 {[%clk 0:02:18.4]} 9... Be7
{[%clk 0:02:29]} 10. b3 {[%clk 0:02:10]} 10... d5 {[%clk 0:02:19.5]} 11. cxd5
{[%clk 0:02:03.7]} 11... exd5 {[%clk 0:02:20.4]} 12. Be3 {[%clk 0:01:57.6]}
12... Qa6 {[%clk 0:02:08.9]} 13. Nd4 {[%clk 0:01:34.6]} 13... Be6 {[%clk
0:02:05.2]} 14. Rc1 {[%clk 0:01:32.3]} 14... Ba3 {[%clk 0:02:00.7]} 15. Nxc6
{[%clk 0:01:23.3]} 15... bxc6 {[%clk 0:02:00.3]} 16. Rc2 {[%clk 0:01:23.6]}
16... Bf5 {[%clk 0:01:58.1]} 17. Rd2 {[%clk 0:01:21]} 17... Bb4 {[%clk
0:01:57.7]} 18. Bd4 {[%clk 0:01:11.5]} 18... Qa5 {[%clk 0:01:36.6]} 19. Bxf6
{[%clk 0:00:51.6]} 19... gxf6 {[%clk 0:01:35.9]} 20. Nxd5 {[%clk 0:00:51.6]}
20... Bxd2 {[%clk 0:01:32.5]} 21. Ne7+ {[%clk 0:00:51.3]} 21... Kh8 {[%clk
0:01:29.1]} 22. Nxf5 {[%clk 0:00:50.2]} 22... Rad8 {[%clk 0:01:22.2]} 23. Qb1
{[%clk 0:00:36.7]} 23... Rfe8 {[%clk 0:01:11.3]} 24. e3 {[%clk 0:00:29.4]} 24...
Re5 {[%clk 0:01:08.6]} 25. Nd4 {[%clk 0:00:27.3]} 25... Rxd4 {[%clk 0:00:53.9]}
26. exd4 {[%clk 0:00:26]} 26... Re6 {[%clk 0:00:51.1]} 27. Qc2 {[%clk
0:00:18.3]} 27... Qc3 {[%clk 0:00:39.6]} 28. Qxc3 {[%clk 0:00:16.9]} 28... Bxc3
{[%clk 0:00:40.5]} 29. Rd1 {[%clk 0:00:17]} 29... Rd6 {[%clk 0:00:37.8]} 30. Rd3
{[%clk 0:00:12.7]} 30... Bxd4 {[%clk 0:00:36]} 31. Kf1 {[%clk 0:00:13.6]} 31...
c5 {[%clk 0:00:34.6]} 32. Be4 {[%clk 0:00:11.8]} 32... Kg7 {[%clk 0:00:26]} 33.
Ke2 {[%clk 0:00:11]} 33... Re6 {[%clk 0:00:24.8]} 34. Kf3 {[%clk 0:00:10.9]}
34... Re5 {[%clk 0:00:24.9]} 35. Bc6 {[%clk 0:00:09.9]} 35... Rf5+ {[%clk
0:00:23.2]} 36. Kg4 {[%clk 0:00:09.9]} 36... Rxf2 {[%clk 0:00:22.9]} 37. b4
{[%clk 0:00:09.9]} 37... Rxa2 {[%clk 0:00:17.1]} 38. bxc5 {[%clk 0:00:10.1]}
38... Bxc5 {[%clk 0:00:17.3]} 39. h4 {[%clk 0:00:10.1]} 39... Rc2 {[%clk
0:00:15.5]} 40. Be4 {[%clk 0:00:08.9]} 40... Rc4 {[%clk 0:00:15.2]} 41. Kf3
{[%clk 0:00:09.2]} 41... a5 {[%clk 0:00:14.7]} 42. Rd7 {[%clk 0:00:07.9]} 42...
Rc3+ {[%clk 0:00:10.5]} 43. Kg2 {[%clk 0:00:08.1]} 43... Re3 {[%clk 0:00:06.6]}
44. Bd5 {[%clk 0:00:07.9]} 44... Be7 {[%clk 0:00:06.7]} 45. Ra7 {[%clk
0:00:07.1]} 45... Re5 {[%clk 0:00:02.3]} 46. Bb3 {[%clk 0:00:06.4]} 1-0

[Event "Late-Titled-Tuesday-Blitz-February-20-2024"]
[Site "Chess.com"]
[Date "2024.02.20"]
[Round "11"]
[White "Slovineanu"]
[Black "gahryman"]
[Result "0-1"]
[WhiteElo "2464"]
[BlackElo "2688"]
[TimeControl "180+1"]
[EndTime "16:05:38 PST"]
[Termination "gahryman won by resignation"]

1. d4 {[%clk 0:02:57.5]} 1... Nf6 {[%clk 0:02:59.3]} 2. Nf3 {[%clk 0:02:57.9]}
2... d5 {[%clk 0:02:56.3]} 3. c4 {[%clk 0:02:58]} 3... e6 {[%clk 0:02:56.3]} 4.
e3 {[%clk 0:02:58.1]} 4... Nbd7 {[%clk 0:02:55.8]} 5. b3 {[%clk 0:02:57.5]} 5...
b6 {[%clk 0:02:55.1]} 6. Bd3 {[%clk 0:02:57.3]} 6... Bb7 {[%clk 0:02:55]} 7. O-O
{[%clk 0:02:57.2]} 7... Bd6 {[%clk 0:02:54.7]} 8. Bb2 {[%clk 0:02:57.2]} 8...
O-O {[%clk 0:02:53.3]} 9. Nc3 {[%clk 0:02:57.7]} 9... Ne4 {[%clk 0:02:52.5]} 10.
Rc1 {[%clk 0:02:47.6]} 10... a6 {[%clk 0:02:51.5]} 11. Ne2 {[%clk 0:02:45.4]}
11... Qf6 {[%clk 0:02:34.1]} 12. Nf4 {[%clk 0:02:34.9]} 12... Bxf4 {[%clk
0:02:29.6]} 13. exf4 {[%clk 0:02:32.3]} 13... Qxf4 {[%clk 0:02:29.7]} 14. cxd5
{[%clk 0:02:19.7]} 14... exd5 {[%clk 0:02:28.9]} 15. Ne5 {[%clk 0:02:17]} 15...
Nxe5 {[%clk 0:02:17.6]} 16. dxe5 {[%clk 0:02:17.1]} 16... Nc5 {[%clk 0:02:13.9]}
17. g3 {[%clk 0:01:49.5]} 17... Qh6 {[%clk 0:02:08.5]} 18. Bf5 {[%clk
0:01:43.4]} 18... d4 {[%clk 0:01:49.7]} 19. Qxd4 {[%clk 0:01:30]} 19... Rad8
{[%clk 0:01:49.2]} 20. Qg4 {[%clk 0:01:26]} 20... Ne6 {[%clk 0:00:54]} 21. Rc2
{[%clk 0:00:55.1]} 21... c5 {[%clk 0:00:53.4]} 22. Bc1 {[%clk 0:00:52.9]} 22...
g5 {[%clk 0:00:42.8]} 23. Bxe6 {[%clk 0:00:50.9]} 23... Qxe6 {[%clk 0:00:41.2]}
24. Qxg5+ {[%clk 0:00:47.5]} 24... Kh8 {[%clk 0:00:40.2]} 25. Qf6+ {[%clk
0:00:37.4]} 25... Qxf6 {[%clk 0:00:38.1]} 26. exf6 {[%clk 0:00:38]} 26... Rfe8
{[%clk 0:00:36.1]} 27. Rd2 {[%clk 0:00:17.5]} 27... Bf3 {[%clk 0:00:32.2]} 28.
Rxd8 {[%clk 0:00:15.1]} 28... Rxd8 {[%clk 0:00:33.1]} 29. Bf4 {[%clk 0:00:13.4]}
29... b5 {[%clk 0:00:28.4]} 30. h3 {[%clk 0:00:13.3]} 30... h5 {[%clk
0:00:27.1]} 31. Kh2 {[%clk 0:00:11.6]} 31... Rd3 {[%clk 0:00:26.8]} 32. g4
{[%clk 0:00:10.8]} 32... h4 {[%clk 0:00:14.5]} 33. Re1 {[%clk 0:00:10.5]} 33...
Kh7 {[%clk 0:00:13.9]} 34. Re3 {[%clk 0:00:10.7]} 34... Rxe3 {[%clk 0:00:11.1]}
35. Bxe3 {[%clk 0:00:08.8]} 35... c4 {[%clk 0:00:11.5]} 36. bxc4 {[%clk
0:00:08.9]} 36... bxc4 {[%clk 0:00:12.4]} 37. Kg1 {[%clk 0:00:08.3]} 37... Kg6
{[%clk 0:00:11.3]} 38. g5 {[%clk 0:00:08.5]} 38... c3 {[%clk 0:00:11.3]} 39. Kf1
{[%clk 0:00:08.5]} 39... c2 {[%clk 0:00:10.4]} 40. Ke1 {[%clk 0:00:08.5]} 40...
Bg2 {[%clk 0:00:10.3]} 41. f4 {[%clk 0:00:05.7]} 41... Bxh3 {[%clk 0:00:08.6]}
42. Kd2 {[%clk 0:00:06.2]} 42... Bf5 {[%clk 0:00:08.4]} 43. Bf2 {[%clk
0:00:06.6]} 43... h3 {[%clk 0:00:08.6]} 44. Bg3 {[%clk 0:00:07]} 44... Kh5
{[%clk 0:00:08.9]} 45. Bh2 {[%clk 0:00:07]} 45... Kg4 {[%clk 0:00:08.8]} 46. Kc1
{[%clk 0:00:02.1]} 46... Kf3 {[%clk 0:00:08.7]} 0-1